bitfinex/quotes_SOLUSD_20230111
["timestamp","ask_amount","ask_price","bid_price","bid_amount"]
[1673465529220,134.6451,16.091,16.075,20.0]
[1673465529427,134.6451,16.091,16.076,63.66]
[1673465529638,134.6451,16.091,16.077,1.92]
[1673465529848,134.6451,16.091,16.078,46.66]
[1673465530168,7.00061719,16.094,16.078,65.80496728]
[1673465530378,7.00061719,16.094,16.079,38.90883734]
[1673465530585,7.00061719,16.094,16.08,66.65]
[1673465530795,7.00061719,16.094,16.081,2.93263166]
[1673465531016,7.00061719,16.094,16.082,46.65]
[1673465531231,7.00061719,16.094,16.083,21.01263166]
[1673465531567,7.00061719,16.094,16.085,1.01263166]
[1673465531774,7.00061719,16.094,16.086,47.59]
[1673465531966,7.00061719,16.094,16.084,19.14496728]
[1673465532180,115.3297,16.093,16.075,46.67]
[1673465532397,115.3297,16.093,16.077,19.14496728]
[1673465532602,115.3297,16.093,16.078,46.66]
[1673465533023,115.3297,16.093,16.078,65.80496728]
[1673465533238,7.00061719,16.094,16.079,20.0]
[1673465533441,7.00061719,16.094,16.08,47.61]
[1673465533866,7.00061719,16.094,16.081,17.96]
[1673465534075,7.00061719,16.094,16.082,46.65]
[1673465534301,7.00061719,16.094,16.078,19.14496728]
[1673465534495,7.00061719,16.094,16.071,46.68]
[1673465534831,7.00061719,16.094,16.073,20.0]
[1673465535039,7.00061719,16.094,16.074,46.67]
[1673465535347,46.61,16.093,16.075,20.0]
[1673465535564,7.00061719,16.094,16.076,46.66]
[1673465536174,7.00061719,16.094,16.077,19.14496728]
[1673465536392,7.00061719,16.094,16.078,46.66]
[1673465537226,7.00061719,16.094,16.079,19.14496728]
[1673465537433,7.00061719,16.094,16.08,46.65]
[1673465537984,7.00061719,16.094,16.079,46.65]
[1673465538184,7.00061719,16.094,16.076,46.66]
[1673465538505,7.00061719,16.094,16.077,1.92]
[1673465538710,7.00061719,16.094,16.078,235.16]
[1673465538908,7.00061719,16.094,16.08,1.00615421]
[1673465539114,7.00061719,16.094,16.082,1.00615421]
[1673465539321,7.00061719,16.094,16.084,1.0062881]
[1673465539556,7.00061719,16.094,16.086,1.0062881]
[1673465539747,7.00061719,16.094,16.088,1.0062881]
[1673465539958,7.00061719,16.094,16.082,46.65]
[1673465540286,7.00061719,16.094,16.083,0.96]
[1673465540505,7.00061719,16.094,16.083,63.64]
[1673465540814,7.00061719,16.094,16.083,17.0]
[1673465541025,7.00061719,16.094,16.084,46.64]
[1673465541220,7.00061719,16.094,16.083,17.0]
[1673465541221,7.00061719,16.094,16.085,17.0]
[1673465541429,7.00061719,16.094,16.083,63.64]
[1673465542069,7.00061719,16.094,16.08,46.65]
[1673465542266,7.00061719,16.094,16.078,46.66]
[1673465542481,94.32365481,16.1,16.079,17.0]
[1673465542699,46.61,16.093,16.077,1250.0]
[1673465542942,119.7375,16.092,16.077,1250.0]
[1673465543351,119.7375,16.092,16.078,65.80496728]
[1673465543799,119.7375,16.092,16.079,19.14496728]
[1673465543999,119.7375,16.092,16.08,46.65]
[1673465544206,119.7375,16.092,16.081,18.92]
[1673465544413,119.7375,16.092,16.082,46.65]
[1673465544626,119.7375,16.092,16.083,17.0]
[1673465544949,119.7375,16.092,16.082,46.65]
[1673465545159,119.7375,16.092,16.072,46.67]
[1673465545353,119.7375,16.092,16.079,19.14496728]
[1673465545564,119.7375,16.092,16.08,46.65]
[1673465546313,119.7375,16.092,16.081,20.10496728]
[1673465546508,119.7375,16.092,16.082,46.65]
[1673465546716,20.0,16.096,16.083,1.92]
[1673465547039,20.0,16.097,16.084,46.64]
[1673465547248,20.0,16.097,16.085,37.96]
[1673465547470,20.0,16.097,16.086,46.63]
[1673465547677,20.0,16.099,16.086,46.63]
[1673465547678,20.0,16.099,16.087,17.0]
[1673465548004,135.3444,16.1,16.087,17.0]
[1673465549154,135.3444,16.1,16.086,46.63]
[1673465550183,135.3444,16.1,16.086,65.77496728]
[1673465550605,135.3444,16.1,16.087,17.0]
[1673465550811,135.3444,16.1,16.088,1.92]
[1673465551046,135.3444,16.1,16.088,19.14496728]
[1673465551255,135.3444,16.1,16.086,46.63]
[1673465551467,135.3444,16.1,16.087,17.0]
[1673465551673,135.3444,16.1,16.086,46.63]
[1673465551988,135.3444,16.1,16.075,40.26396496]
[1673465551989,20.0,16.098,16.075,40.26396496]
[1673465552186,46.6,16.097,16.075,40.26396496]
[1673465552514,46.6,16.097,16.076,65.80496728]
[1673465552834,20.0,16.096,16.077,39.14496728]
[1673465553040,20.0,16.096,16.078,47.62]
[1673465553258,20.0,16.096,16.079,17.96]
[1673465553445,20.0,16.096,16.08,46.65]
[1673465553652,20.0,16.096,16.081,18.92]
[1673465553883,20.0,16.096,16.082,46.65]
[1673465554212,20.0,16.096,16.083,18.92]
[1673465554421,20.0,16.096,16.084,46.64]
[1673465554731,20.0,16.096,16.085,37.0]
[1673465554920,20.0,16.096,16.085,37.96]
[1673465555128,20.0,16.096,16.085,17.0]
[1673465555335,20.0,16.096,16.078,46.66]
[1673465555556,20.0,16.096,16.081,19.14496728]
[1673465555760,20.0,16.096,16.076,46.66]
[1673465555971,20.0,16.096,16.079,19.14496728]
[1673465556186,20.0,16.096,16.08,46.65]
[1673465556515,20.0,16.096,16.081,19.14496728]
[1673465556705,20.0,16.096,16.082,46.65]
[1673465556914,20.0,16.098,16.083,1.92]
[1673465557124,20.0,16.098,16.084,46.64]
[1673465557336,20.0,16.098,16.085,1.92]
[1673465557565,20.0,16.099,16.086,46.63]
[1673465557962,115.3444,16.1,16.086,65.77496728]
[1673465558177,115.3444,16.1,16.087,38.06496728]
[1673465558382,280.2551248,16.101,16.087,38.06496728]
[1673465558611,280.2551248,16.101,16.089,20.0]
[1673465558817,163.7484248,16.101,16.09,48.54]
[1673465559026,163.7484248,16.101,16.09,105.80396496]
[1673465559442,163.7484248,16.101,16.091,40.26396496]
[1673465559664,163.7484248,16.101,16.092,18.92]
[1673465560275,163.7484248,16.101,16.092,17.0]
[1673465560698,163.7484248,16.101,16.09,65.76496728]
[1673465560927,163.7484248,16.101,16.091,17.0]
[1673465561339,163.7484248,16.101,16.092,100.43259172]
[1673465561545,163.7484248,16.101,16.093,17.0]
[1673465561875,163.7484248,16.101,16.094,0.96]
[1673465562277,163.7484248,16.101,16.095,47.57]
[1673465562591,163.7484248,16.101,16.097,20.0]
[1673465562816,163.7484248,16.101,16.098,49.55756138]
[1673465563028,163.7484248,16.101,16.099,20.0]
[1673465563552,163.7484248,16.101,16.1,38.92]
[1673465563770,163.7484248,16.101,16.1,85.51]
[1673465564074,46.54,16.118,16.101,79.9944752]
[1673465564283,5.49,16.13,16.101,79.9944752]
[1673465564284,164.3366,16.125,16.102,47.55]
[1673465564479,164.3366,16.125,16.102,73.18026557]
[1673465564480,162.19776818,16.119,16.102,73.18026557]
[1673465564685,162.19776818,16.119,16.08,22.07]
[1673465564686,66.56,16.112,16.08,22.07]
[1673465564911,176.7312,16.112,16.08,22.07]
[1673465565133,176.7312,16.112,16.088,46.63]
[1673465565349,5.5,16.11,16.088,65.77496728]
[1673465565539,66.57,16.109,16.089,19.14496728]
[1673465565757,66.57,16.109,16.09,46.62]
[1673465565961,66.57,16.109,16.089,19.14496728]
[1673465566171,17.0,16.108,16.08,22.07]
[1673465566386,20.0,16.106,16.076,7.17744]
[1673465566577,83.58,16.105,16.076,7.17744]
[1673465566790,83.58,16.105,16.077,46.66]
[1673465567333,20.0,16.103,16.077,46.66]
[1673465567534,20.78379138,16.101,16.074,66.67]
[1673465567732,0.97623719,16.099,16.064,46.7]
[1673465567953,0.97623719,16.099,16.062,46.7]
[1673465567954,1.39518294,16.097,16.062,46.7]
[1673465568159,1.39518294,16.095,16.064,19.14496728]
[1673465568373,21.39518294,16.093,16.066,20.0]
[1673465568589,1.39518294,16.091,16.067,46.69]
[1673465568793,184.5136,16.092,16.067,46.69]
[1673465568794,1.39518294,16.089,16.067,65.83496728]
[1673465569010,1.39518294,16.087,16.068,19.14496728]
[1673465569236,1.39518294,16.085,16.069,46.68]
[1673465569446,110.7116,16.084,16.069,46.68]
[1673465569854,110.7116,16.084,16.07,19.14496728]
[1673465570064,110.7116,16.084,16.071,46.68]
[1673465570264,117.8936,16.083,16.071,46.68]
[1673465570475,117.8936,16.083,16.072,19.14496728]
[1673465570804,117.8936,16.083,16.073,1.92]
[1673465571023,117.8936,16.083,16.073,18.92]
[1673465571233,117.8936,16.083,16.063,46.7]
[1673465571542,117.8936,16.083,16.061,24.896042]
[1673465571543,20.65060899,16.082,16.061,24.896042]
[1673465571754,104.30060899,16.082,16.06,19.14496728]
[1673465571942,103.65,16.082,16.052,20.0]
[1673465572160,5.49,16.08,16.053,46.73]
[1673465572389,20.0,16.078,16.051,46.74]
[1673465572591,83.66,16.077,16.051,46.74]
[1673465572790,83.66,16.077,16.051,19.14496728]
[1673465572999,83.66,16.077,16.052,19.14496728]
[1673465573000,46.66,16.077,16.052,19.14496728]
[1673465573328,20.0,16.076,16.053,46.73]
[1673465573542,46.67,16.075,16.053,46.73]
[1673465573732,46.67,16.075,16.05,24.908368]
[1673465573733,20.0,16.074,16.05,24.908368]
[1673465573943,63.67,16.073,16.05,24.908368]
[1673465574154,20.0,16.072,16.05,71.648368]
[1673465574363,20.0,16.07,16.05,71.648368]
[1673465574580,46.68,16.069,16.051,19.14496728]
[1673465574802,46.68,16.069,16.052,46.73]
[1673465574993,20.0,16.07,16.052,46.73]
[1673465575210,20.0,16.07,16.053,19.14496728]
[1673465575528,20.0,16.07,16.054,46.73]
[1673465575935,20.0,16.07,16.051,46.74]
[1673465576151,46.68,16.069,16.05,24.908368]
[1673465576373,20.0,16.068,16.051,46.74]
[1673465576693,46.69,16.067,16.051,46.74]
[1673465576902,46.69,16.067,16.05,71.648368]
[1673465577114,13.535975,16.068,16.05,24.908368]
[1673465577308,20.0,16.066,16.05,24.908368]
[1673465577508,46.69,16.065,16.05,24.908368]
[1673465577733,20.0,16.064,16.05,24.908368]
[1673465577948,66.7,16.063,16.05,24.908368]
[1673465578155,20.0,16.061,16.05,24.908368]
[1673465578364,67.67,16.06,16.05,24.908368]
[1673465578576,46.71,16.06,16.05,24.908368]
[1673465578774,20.0,16.061,16.05,24.908368]
[1673465580904,0.96,16.06,16.05,24.908368]
[1673465581127,46.71,16.059,16.05,24.908368]
[1673465581341,20.96,16.058,16.05,24.908368]
[1673465581539,46.72,16.057,16.05,6.8e-05]
[1673465581751,20.0,16.056,16.04,46.77]
[1673465581959,20.0,16.056,16.03,127.2544284]
[1673465581960,20.0,16.056,16.038,65.91496728]
[1673465582285,113.364,16.057,16.042,20.0]
[1673465582488,46.71,16.06,16.043,46.76]
[1673465582703,113.364,16.062,16.043,46.76]
[1673465582901,20.0,16.06,16.042,20.0]
[1673465583113,46.71,16.059,16.042,20.0]
[1673465583327,0.96,16.058,16.042,20.0]
[1673465583640,113.364,16.062,16.044,20.0]
[1673465583847,113.364,16.062,16.045,66.75]
[1673465584058,113.364,16.062,16.046,20.0]
[1673465584284,113.364,16.062,16.047,63.75]
[1673465585329,113.364,16.062,16.048,20.0]
[1673465585541,113.364,16.062,16.049,46.74]
[1673465586164,113.364,16.062,16.046,46.75]
[1673465586376,113.364,16.062,16.045,66.75]
[1673465586783,113.364,16.062,16.045,85.89496728]
[1673465587015,46.68,16.071,16.046,20.0]
[1673465587226,108.0498,16.069,16.047,46.75]
[1673465587435,108.0498,16.069,16.047,65.89496728]
[1673465587641,108.0498,16.069,16.048,20.0]
[1673465587871,108.0498,16.069,16.049,46.74]
[1673465588045,108.0498,16.069,16.049,65.88496728]
[1673465588370,20.0,16.063,16.039,44.925813]
[1673465588579,46.7,16.062,16.039,24.925813]
[1673465588778,20.0,16.061,16.04,46.77]
[1673465588994,46.71,16.06,16.04,46.77]
[1673465589219,20.0,16.059,16.04,65.91496728]
[1673465589431,46.71,16.058,16.04,65.91496728]
[1673465589830,46.71,16.059,16.04,65.91496728]
[1673465590046,46.71,16.059,16.041,20.0]
[1673465590262,108.0498,16.06,16.042,46.76]
[1673465590470,0.96,16.058,16.042,46.76]
[1673465590683,108.0498,16.06,16.042,65.90496728]
[1673465591104,108.0498,16.06,16.043,20.0]
[1673465591307,108.0498,16.06,16.044,46.76]
[1673465591518,108.0498,16.06,16.044,85.04993456]
[1673465591736,108.0498,16.06,16.044,65.90496728]
[1673465591939,108.0498,16.06,16.045,56.14496728]
[1673465592148,108.0498,16.06,16.046,46.75]
[1673465592355,108.0498,16.06,16.042,46.76]
[1673465592788,108.0498,16.06,16.042,65.90496728]
[1673465593195,108.0498,16.06,16.042,46.76]
[1673465593525,108.0498,16.06,16.04,46.77]
[1673465593738,66.71,16.059,16.04,46.77]
[1673465594159,0.96,16.058,16.038,46.77]
[1673465594363,46.72,16.057,16.038,46.77]
[1673465594562,46.72,16.057,16.039,19.14496728]
[1673465594768,46.72,16.057,16.04,46.77]
[1673465594989,109.8919,16.056,16.039,19.14496728]
[1673465595217,20.0,16.055,16.039,19.14496728]
[1673465595419,0.96,16.054,16.039,19.14496728]
[1673465595951,0.96,16.054,16.038,71.695994]
[1673465596148,20.0,16.052,16.038,24.925994]
[1673465596362,5.45,16.05,16.038,24.925994]
[1673465596562,46.74,16.049,16.037,2.96776288]
[1673465596775,20.0,16.048,16.037,2.96776288]
[1673465596984,0.66688043,16.046,16.037,2.96776288]
[1673465597195,66.75,16.045,16.037,2.96776288]
[1673465597739,20.0,16.045,16.037,2.96776288]
[1673465598142,46.76,16.044,16.037,2.96776288]
[1673465598356,0.96,16.043,16.037,2.96776288]
[1673465598680,20.96,16.043,16.037,2.96776288]
[1673465599085,20.0,16.043,16.037,2.96776288]
[1673465599296,46.75,16.045,16.043,11.81938367]
[1673465599508,20.0,16.046,16.043,11.81938367]
[1673465600151,155.6819,16.047,16.043,11.81938367]
[1673465600366,108.9319,16.047,16.043,11.81938367]
[1673465601399,46.75,16.046,16.043,11.81938367]
[1673465601610,20.0,16.045,16.043,0.49918367]
[1673465601814,20.0,16.045,16.043,0.00918367]
[1673465602052,20.0,16.045,16.037,2.96776288]
[1673465603321,115.481,16.051,16.038,46.77]
[1673465603710,115.481,16.051,16.039,17.0]
[1673465603920,115.481,16.051,16.04,46.77]
[1673465604228,115.481,16.051,16.04,65.91496728]
[1673465604442,66.71,16.059,16.04,65.91496728]
[1673465604668,216.9418,16.056,16.041,36.14496728]
[1673465604876,216.9418,16.056,16.042,46.76]
[1673465605078,216.9418,16.056,16.041,19.14496728]
[1673465605283,46.7,16.064,16.042,67.82496728]
[1673465605502,108.0099,16.064,16.043,20.0]
[1673465605711,108.0099,16.064,16.044,65.68]
[1673465605915,108.0099,16.064,16.046,20.0]
[1673465606132,108.0099,16.064,16.047,65.67]
[1673465606341,108.0099,16.064,16.048,20.0]
[1673465606558,108.0099,16.064,16.049,65.66]
[1673465606752,108.0099,16.064,16.049,84.80496728]
[1673465606974,108.0099,16.064,16.05,19.14496728]
[1673465607200,108.0099,16.064,16.051,65.66]
[1673465607503,108.0099,16.064,16.051,84.80496728]
[1673465607705,66.68,16.071,16.051,103.94993456]
[1673465607917,110.5071,16.07,16.052,20.0]
[1673465608126,110.5071,16.07,16.053,48.65]
[1673465608346,66.67,16.073,16.053,48.65]
[1673465608347,20.0,16.073,16.054,37.0]
[1673465608663,110.5071,16.071,16.055,47.68]
[1673465608975,110.5071,16.071,16.056,17.96]
[1673465609302,110.5071,16.071,16.057,46.72]
[1673465609615,110.5071,16.071,16.058,17.0]
[1673465609810,20.0,16.07,16.058,17.0]
[1673465610348,20.0,16.07,16.056,46.72]
[1673465610544,66.68,16.07,16.051,46.74]
[1673465610758,66.68,16.07,16.047,46.75]
[1673465611081,72.19,16.07,16.047,19.14496728]
[1673465611293,72.19,16.07,16.048,46.74]
[1673465611494,72.17,16.07,16.048,46.74]
[1673465611714,72.17,16.07,16.049,19.14496728]
[1673465611917,72.13,16.07,16.049,19.14496728]
[1673465612127,72.13,16.07,16.046,46.75]
[1673465612338,20.0,16.068,16.046,19.14496728]
[1673465612555,46.69,16.067,16.047,46.75]
[1673465612966,20.0,16.065,16.046,19.14496728]
[1673465613182,46.7,16.064,16.047,46.75]
[1673465613376,20.0,16.063,16.047,46.75]
[1673465614131,20.0,16.063,16.047,65.89496728]
[1673465614320,46.7,16.064,16.047,19.14496728]
[1673465614660,128.9521,16.065,16.047,19.14496728]
[1673465614661,128.9521,16.065,16.048,46.74]
[1673465614845,128.9521,16.065,16.049,18.92]
[1673465615058,128.9521,16.065,16.05,46.74]
[1673465615491,108.9521,16.065,16.05,46.74]
[1673465615687,108.9521,16.065,16.051,19.14496728]
[1673465615899,108.9521,16.065,16.052,46.73]
[1673465616234,108.9521,16.065,16.053,19.14496728]
[1673465616426,108.9521,16.065,16.054,46.73]
[1673465616968,108.9521,16.065,16.055,17.0]
[1673465617800,108.9521,16.065,16.054,17.0]
[1673465620117,157.1871,16.071,16.055,20.0]
[1673465620346,110.5071,16.071,16.056,1.92]
[1673465620536,110.5071,16.071,16.056,21.06496728]
[1673465620741,110.5071,16.071,16.057,19.14496728]
[1673465620961,110.5071,16.071,16.058,63.71]
[1673465621184,110.5071,16.071,16.058,17.0]
[1673465621800,20.0,16.07,16.058,46.71]
[1673465622011,20.0,16.07,16.054,19.14496728]
[1673465623065,110.5071,16.071,16.054,19.14496728]
[1673465623285,110.5071,16.071,16.055,46.72]
[1673465623497,5.49,16.08,16.055,46.72]
[1673465623498,46.67,16.075,16.056,20.0]
[1673465623704,112.9739,16.075,16.057,46.72]
[1673465623913,112.9739,16.075,16.058,17.0]
[1673465624131,112.9739,16.075,16.059,46.71]
[1673465624347,112.9739,16.075,16.06,17.0]
[1673465624879,20.0,16.073,16.06,17.0]
[1673465626981,20.0,16.073,16.052,46.73]
[1673465627201,20.0,16.073,16.04,21.87]
[1673465627202,5.45,16.07,16.04,21.87]
[1673465627388,20.0,16.068,16.043,20.0]
[1673465627597,46.69,16.067,16.043,20.0]
[1673465627824,20.0,16.066,16.046,46.75]
[1673465628036,46.69,16.065,16.046,46.75]
[1673465628241,20.0,16.064,16.046,46.75]
[1673465628963,20.0,16.064,16.045,46.75]
[1673465629397,0.96,16.063,16.044,46.76]
[1673465629603,20.0,16.062,16.042,46.76]
[1673465629796,20.0,16.062,16.04,46.77]
[1673465630014,66.71,16.061,16.04,46.77]
[1673465630238,86.81496728,16.061,16.038,46.77]
[1673465630486,67.67,16.061,16.038,46.77]
[1673465630782,66.71,16.061,16.039,20.0]
[1673465630973,46.71,16.061,16.04,46.77]
[1673465631174,46.7,16.063,16.041,20.0]
[1673465631390,46.7,16.063,16.042,46.76]
[1673465631598,20.0,16.064,16.042,46.76]
[1673465631828,20.0,16.064,16.043,20.0]
[1673465632042,20.0,16.064,16.044,47.72]
[1673465632231,20.0,16.064,16.045,17.96]
[1673465632440,20.0,16.064,16.046,66.75]
[1673465632664,20.0,16.062,16.046,20.0]
[1673465632884,20.0,16.062,16.043,20.0]
[1673465633082,20.0,16.062,16.044,46.76]
[1673465633083,19.14496728,16.061,16.044,46.76]
[1673465633292,46.71,16.06,16.038,46.77]
[1673465633504,20.0,16.059,16.039,20.0]
[1673465633715,46.71,16.058,16.04,46.77]
[1673465634137,109.9116,16.057,16.04,46.77]
[1673465634694,20.0,16.056,16.038,46.77]
[1673465634884,138.5451,16.056,16.038,46.77]
[1673465636668,138.5451,16.056,16.039,38.92]
[1673465636944,138.5451,16.056,16.04,46.77]
[1673465637072,138.5451,16.056,16.041,1.92]
[1673465637313,138.5451,16.056,16.042,46.76]
[1673465638025,138.5451,16.056,16.038,46.77]
[1673465638869,0.96,16.055,16.038,46.77]
[1673465639601,138.5451,16.056,16.039,20.0]
[1673465639817,138.5451,16.056,16.04,46.77]
[1673465640644,138.5451,16.056,16.038,46.77]
[1673465640951,138.5451,16.056,16.039,18.92]
[1673465641165,138.5451,16.056,16.04,46.77]
[1673465641384,118.5451,16.056,16.041,1.92]
[1673465641714,118.5451,16.056,16.042,46.76]
[1673465642022,118.5451,16.056,16.043,17.0]
[1673465643586,118.5451,16.056,16.042,46.76]
[1673465643798,118.5451,16.056,16.038,46.77]
[1673465645323,66.7,16.064,16.04,21.89]
[1673465645467,115.8216,16.063,16.041,75.8731]
[1673465645731,66.69,16.068,16.042,44.19265]
[1673465645889,20.0,16.073,16.043,264.3722]
[1673465645890,46.68,16.07,16.043,264.3722]
[1673465646210,135.8216,16.073,16.043,264.3722]
[1673465646211,135.8216,16.073,16.044,7.19176]
[1673465646425,46.67,16.072,16.045,257.17]
[1673465646635,182.4916,16.073,16.045,126.58576781]
[1673465646854,19.14496728,16.072,16.045,126.58576781]
[1673465647184,66.68,16.071,16.046,17.0]
[1673465647371,20.0,16.07,16.047,48.67]
[1673465647581,46.68,16.069,16.047,48.67]
[1673465647791,46.68,16.069,16.046,46.75]
[1673465648066,20.96,16.068,16.046,46.75]
[1673465648209,46.69,16.067,16.048,17.0]
[1673465648427,46.69,16.067,16.049,46.74]
[1673465648740,46.69,16.067,16.047,17.0]
[1673465648741,46.69,16.067,16.048,46.74]
[1673465648954,46.69,16.067,16.049,17.0]
[1673465649166,46.69,16.067,16.05,48.66]
[1673465649487,46.69,16.067,16.05,0.96]
[1673465649699,46.69,16.067,16.049,18.92]
[1673465650011,46.68,16.07,16.05,66.74]
[1673465650328,20.0,16.069,16.051,0.96]
[1673465650543,20.0,16.069,16.05,46.74]
[1673465651251,0.96,16.068,16.05,46.74]
[1673465651680,0.96,16.068,16.051,17.0]
[1673465654631,0.96,16.068,16.05,46.74]
[1673465654949,20.10496728,16.068,16.048,46.74]
[1673465655154,66.79496728,16.068,16.048,46.74]
[1673465655547,20.0,16.067,16.048,46.74]
[1673465655905,20.0,16.067,16.049,18.92]
[1673465656221,20.0,16.069,16.05,46.74]
[1673465656427,20.0,16.071,16.051,21.92]
[1673465656641,20.0,16.071,16.052,46.73]
[1673465656850,20.0,16.071,16.053,18.92]
[1673465657050,20.0,16.072,16.055,20.0]
[1673465657259,20.0,16.072,16.056,68.64]
[1673465657470,20.0,16.072,16.057,17.0]
[1673465657687,20.0,16.072,16.058,46.71]
[1673465657903,20.0,16.072,16.059,17.0]
[1673465658104,20.0,16.072,16.055,46.72]
[1673465658315,66.67,16.072,16.056,37.0]
[1673465658523,19.14496728,16.071,16.055,46.72]
[1673465658848,19.14496728,16.071,16.044,20.0]
[1673465658849,20.0,16.069,16.044,20.0]
[1673465659041,46.69,16.068,16.044,20.0]
[1673465659269,65.83496728,16.068,16.045,46.75]
[1673465659583,40.10496728,16.067,16.045,46.75]
[1673465659794,46.69,16.066,16.045,46.75]
[1673465660000,225.1915,16.065,16.046,20.0]
[1673465660213,225.1915,16.065,16.047,46.75]
[1673465660432,20.0,16.063,16.046,20.0]
[1673465660740,39.14496728,16.063,16.044,20.0]
[1673465660944,39.14496728,16.063,16.042,46.76]
[1673465660945,46.7,16.062,16.043,20.0]
[1673465661154,46.7,16.062,16.044,46.76]
[1673465661349,20.0,16.061,16.045,20.0]
[1673465661562,20.96,16.061,16.045,20.0]
[1673465661884,20.0,16.061,16.045,20.0]
[1673465662105,20.0,16.061,16.039,40.0]
[1673465662294,20.0,16.061,16.041,20.0]
[1673465662497,20.0,16.061,16.042,66.76]
[1673465662731,20.0,16.061,16.042,46.76]
[1673465663047,20.0,16.059,16.04,46.77]
[1673465663445,0.96,16.058,16.038,46.77]
[1673465664422,20.0,16.059,16.039,20.0]
[1673465664611,46.71,16.058,16.04,46.77]
[1673465664843,20.0,16.059,16.04,46.77]
[1673465665778,20.0,16.059,16.041,18.92]
[1673465665985,20.0,16.059,16.042,46.76]
[1673465666397,20.0,16.059,16.043,17.0]
[1673465666793,46.7,16.062,16.044,66.86496728]
[1673465667008,20.0,16.064,16.045,20.0]
[1673465667228,20.0,16.064,16.046,47.71]
[1673465667443,20.0,16.064,16.047,17.0]
[1673465667751,20.0,16.064,16.048,46.74]
[1673465667972,20.0,16.064,16.049,17.0]
[1673465668913,20.0,16.064,16.048,63.74]
[1673465670169,20.0,16.064,16.049,1.92]
[1673465670365,46.69,16.068,16.049,1.92]
[1673465670366,46.69,16.068,16.049,21.92]
[1673465670691,20.0,16.069,16.049,21.92]
[1673465670692,20.0,16.069,16.05,46.74]
[1673465671104,46.69,16.068,16.046,65.89496728]
[1673465671310,20.0,16.064,16.047,18.92]
[1673465671521,20.0,16.064,16.048,46.74]
[1673465671726,20.0,16.064,16.049,17.0]
[1673465671938,20.0,16.064,16.05,46.74]
[1673465672259,20.0,16.064,16.051,17.0]
[1673465672456,20.0,16.064,16.048,46.74]
[1673465672671,20.0,16.064,16.049,17.0]
[1673465673101,20.0,16.069,16.05,48.66]
[1673465673318,20.0,16.069,16.051,17.0]
[1673465673531,20.0,16.069,16.052,46.73]
[1673465673724,20.0,16.069,16.053,17.0]
[1673465673934,20.0,16.069,16.051,63.74]
[1673465674145,20.0,16.069,16.052,1.92]
[1673465674361,20.0,16.069,16.053,46.73]
[1673465674889,20.0,16.069,16.054,17.0]